[Event "*** Titled Tuesday Blitz"]
[Site "Chess.com"]
[Date "2021.03.30"]
[Round "1"]
[White "ARMQUEEN"]
[Black "enriquetejedor"]
[Result "0-1"]
[WhiteElo "2306"]
[BlackElo "2609"]
[TimeControl "180+1"]
[EndTime "10:04:30 PDT"]
[Termination "enriquetejedor won by resignation"]

1. e4 {[%clk 0:02:57.7]} 1... c5 {[%clk 0:02:55.8]} 2. Nc3 {[%clk 0:02:56.8]}
2... Nc6 {[%clk 0:02:54.9]} 3. Bb5 {[%clk 0:02:56.1]} 3... Na5 {[%clk
0:02:47.2]} 4. d4 {[%clk 0:02:45.9]} 4... a6 {[%clk 0:02:44.6]} 5. Be2 {[%clk
0:02:41.9]} 5... cxd4 {[%clk 0:02:42.7]} 6. Qxd4 {[%clk 0:02:42.8]} 6... Nc6
{[%clk 0:02:42.9]} 7. Qd1 {[%clk 0:02:36.7]} 7... g6 {[%clk 0:02:41.6]} 8. Nf3
{[%clk 0:02:34.1]} 8... Bg7 {[%clk 0:02:41]} 9. O-O {[%clk 0:02:34]} 9... d6
{[%clk 0:02:38.8]} 10. Bc4 {[%clk 0:02:28.6]} 10... Nf6 {[%clk 0:02:32.4]} 11.
a4 {[%clk 0:02:21.4]} 11... O-O {[%clk 0:02:26.9]} 12. Bg5 {[%clk 0:02:17]}
12... Bg4 {[%clk 0:02:25.3]} 13. h3 {[%clk 0:02:12.8]} 13... Bxf3 {[%clk
0:02:24.1]} 14. Qxf3 {[%clk 0:02:13.7]} 14... Rc8 {[%clk 0:02:18.9]} 15. Ba2
{[%clk 0:02:04.5]} 15... Nd7 {[%clk 0:02:12.5]} 16. Rad1 {[%clk 0:01:54.6]}
16... Nd4 {[%clk 0:02:00.5]} 17. Qd3 {[%clk 0:01:23.6]} 17... Ne5 {[%clk
0:01:34.3]} 18. Qg3 {[%clk 0:01:22]} 18... Rxc3 {[%clk 0:01:31.2]} 19. Be3
{[%clk 0:01:05.4]} 19... Ne2+ {[%clk 0:01:28.6]} 0-1

[Event "*** Titled Tuesday Blitz"]
[Site "Chess.com"]
[Date "2021.03.30"]
[Round "1"]
[White "AttilaTurzo"]
[Black "canary2016"]
[Result "1-0"]
[WhiteElo "2492"]
[BlackElo "2013"]
[TimeControl "180+1"]
[EndTime "10:04:42 PDT"]
[Termination "AttilaTurzo won by resignation"]

1. d4 {[%clk 0:02:32.2]} 1... d5 {[%clk 0:02:59.1]} 2. Bf4 {[%clk 0:02:30.9]}
2... Nf6 {[%clk 0:02:58.1]} 3. e3 {[%clk 0:02:29.5]} 3... e6 {[%clk 0:02:56]} 4.
Nf3 {[%clk 0:02:29.5]} 4... Bd6 {[%clk 0:02:53.2]} 5. Bg3 {[%clk 0:02:29.9]}
5... c5 {[%clk 0:02:51]} 6. c3 {[%clk 0:02:29.6]} 6... Qc7 {[%clk 0:02:50]} 7.
dxc5 {[%clk 0:02:26.2]} 7... Qxc5 {[%clk 0:02:47.3]} 8. Nbd2 {[%clk 0:02:26.4]}
8... O-O {[%clk 0:02:43]} 9. Bd3 {[%clk 0:02:23.6]} 9... Bd7 {[%clk 0:02:37]}
10. e4 {[%clk 0:02:20.3]} 10... dxe4 {[%clk 0:02:27.9]} 11. Nxe4 {[%clk
0:02:21.2]} 11... Nxe4 {[%clk 0:02:21.6]} 12. Bxe4 {[%clk 0:02:22.1]} 12... Bxg3
{[%clk 0:02:13]} 13. hxg3 {[%clk 0:02:22.3]} 13... h6 {[%clk 0:02:06.1]} 14.
Bxb7 {[%clk 0:02:20.5]} 14... Nc6 {[%clk 0:01:49]} 15. Bxa8 {[%clk 0:02:08.5]}
15... Rxa8 {[%clk 0:01:38.8]} 16. Qxd7 {[%clk 0:02:05.8]} 16... Rd8 {[%clk
0:01:38.6]} 17. Qc7 {[%clk 0:02:03]} 17... Qd5 {[%clk 0:01:29]} 18. O-O {[%clk
0:01:49.2]} 18... Rd7 {[%clk 0:01:25.8]} 19. Qc8+ {[%clk 0:01:48.5]} 19... Rd8
{[%clk 0:01:25.2]} 20. Qa6 {[%clk 0:01:48]} 20... Qc5 {[%clk 0:01:21]} 21. Rad1
{[%clk 0:01:46.1]} 21... Rb8 {[%clk 0:01:20.5]} 22. b4 {[%clk 0:01:43.9]} 22...
Qxc3 {[%clk 0:01:10.8]} 23. Rc1 {[%clk 0:01:43.8]} 23... Nxb4 {[%clk 0:01:10.9]}
24. Qxa7 {[%clk 0:01:43.6]} 24... Nc6 {[%clk 0:01:03.9]} 25. Qxb8+ {[%clk
0:01:42.7]} 25... Nxb8 {[%clk 0:01:03.5]} 26. Rxc3 {[%clk 0:01:43.1]} 26... Na6
{[%clk 0:01:03.4]} 27. Rb1 {[%clk 0:01:39.3]} 27... e5 {[%clk 0:01:02.2]} 28.
Nxe5 {[%clk 0:01:38.7]} 28... f6 {[%clk 0:01:03.1]} 29. Nf3 {[%clk 0:01:34.1]}
29... Kf7 {[%clk 0:01:04]} 30. Rb6 {[%clk 0:01:33.9]} 1-0

[Event "*** Titled Tuesday Blitz"]
[Site "Chess.com"]
[Date "2021.03.30"]
[Round "1"]
[White "MoonlighT89"]
[Black "Kostukov_Alex"]
[Result "1-0"]
[WhiteElo "2609"]
[BlackElo "2306"]
[TimeControl "180+1"]
[EndTime "10:04:44 PDT"]
[Termination "MoonlighT89 won by resignation"]

1. e4 {[%clk 0:03:00.9]} 1... c5 {[%clk 0:02:58.7]} 2. Nf3 {[%clk 0:03:01.3]}
2... g6 {[%clk 0:02:58.3]} 3. d4 {[%clk 0:03:01.3]} 3... cxd4 {[%clk 0:02:58.7]}
4. Qxd4 {[%clk 0:03:02.2]} 4... Nf6 {[%clk 0:02:58.4]} 5. Nc3 {[%clk 0:03:02.9]}
5... Nc6 {[%clk 0:02:58.3]} 6. Qa4 {[%clk 0:03:03.5]} 6... d6 {[%clk 0:02:45.9]}
7. e5 {[%clk 0:03:03.9]} 7... dxe5 {[%clk 0:02:39.8]} 8. Nxe5 {[%clk 0:03:04.8]}
8... Bg7 {[%clk 0:02:40.3]} 9. Nxc6 {[%clk 0:03:04.4]} 9... bxc6 {[%clk
0:02:41.2]} 10. Qxc6+ {[%clk 0:03:04.3]} 10... Bd7 {[%clk 0:02:41.7]} 11. Qf3
{[%clk 0:03:03.4]} 11... O-O {[%clk 0:02:40.7]} 12. Bd3 {[%clk 0:03:03.3]} 12...
Bg4 {[%clk 0:02:35.1]} 13. Qg3 {[%clk 0:03:02]} 13... Qb6 {[%clk 0:02:13.9]} 14.
O-O {[%clk 0:02:57.7]} 14... Rac8 {[%clk 0:02:05]} 15. h3 {[%clk 0:02:32.6]}
15... Be6 {[%clk 0:02:01.5]} 16. Qe3 {[%clk 0:02:31.4]} 16... Qb4 {[%clk
0:01:51.3]} 17. a3 {[%clk 0:02:28.8]} 17... Qb8 {[%clk 0:01:45]} 18. Bd2 {[%clk
0:02:22.5]} 18... Qxb2 {[%clk 0:01:24.5]} 19. Rfb1 {[%clk 0:02:18.3]} 19... Qxc3
{[%clk 0:01:15.8]} 20. Bxc3 {[%clk 0:02:15.3]} 20... Rxc3 {[%clk 0:01:14.5]} 21.
Qxa7 {[%clk 0:02:15.1]} 21... Nd5 {[%clk 0:01:08.4]} 22. Rb8 {[%clk 0:02:02.5]}
22... Bf6 {[%clk 0:01:02.2]} 23. Rxf8+ {[%clk 0:01:57.4]} 23... Kxf8 {[%clk
0:00:56.1]} 24. Rb1 {[%clk 0:01:48.4]} 24... Nf4 {[%clk 0:00:40.2]} 25. Qb8+
{[%clk 0:01:47.8]} 1-0

[Event "*** Titled Tuesday Blitz"]
[Site "Chess.com"]
[Date "2021.03.30"]
[Round "1"]
[White "GMaka"]
[Black "OparinGrigoriy"]
[Result "0-1"]
[WhiteElo "2471"]
[BlackElo "2992"]
[TimeControl "180+1"]
[EndTime "10:04:49 PDT"]
[Termination "OparinGrigoriy won by resignation"]

1. d4 {[%clk 0:03:00.9]} 1... Nf6 {[%clk 0:02:59.5]} 2. Bg5 {[%clk 0:02:59.9]}
2... c5 {[%clk 0:02:59.5]} 3. Bxf6 {[%clk 0:02:59.6]} 3... gxf6 {[%clk
0:02:59.2]} 4. d5 {[%clk 0:02:58.6]} 4... f5 {[%clk 0:02:58.9]} 5. e3 {[%clk
0:02:55]} 5... Qb6 {[%clk 0:02:57.8]} 6. Qc1 {[%clk 0:02:54.3]} 6... Bg7 {[%clk
0:02:54.3]} 7. c3 {[%clk 0:02:48.1]} 7... e6 {[%clk 0:02:54.9]} 8. Bc4 {[%clk
0:02:40.4]} 8... Na6 {[%clk 0:02:54.9]} 9. Ne2 {[%clk 0:02:37.1]} 9... Nc7
{[%clk 0:02:54.4]} 10. Nf4 {[%clk 0:02:37.6]} 10... Be5 {[%clk 0:02:48.1]} 11.
O-O {[%clk 0:02:24.5]} 11... Bxf4 {[%clk 0:02:46.7]} 12. exf4 {[%clk 0:02:25.1]}
12... exd5 {[%clk 0:02:46.2]} 13. Re1+ {[%clk 0:02:24.3]} 13... Kf8 {[%clk
0:02:43.9]} 14. Bd3 {[%clk 0:02:23.7]} 14... Qf6 {[%clk 0:02:44]} 15. Qe3 {[%clk
0:02:20.6]} 15... d6 {[%clk 0:02:44.4]} 16. Nd2 {[%clk 0:02:15.3]} 16... Be6
{[%clk 0:02:44.6]} 17. Nf3 {[%clk 0:02:15.6]} 17... h6 {[%clk 0:02:45]} 18. a4
{[%clk 0:02:13]} 18... Rg8 {[%clk 0:02:44.7]} 19. g3 {[%clk 0:02:12.6]} 19...
Re8 {[%clk 0:02:41.6]} 20. Qd2 {[%clk 0:02:08]} 20... Kg7 {[%clk 0:02:41.9]} 21.
Re2 {[%clk 0:02:05.9]} 21... Re7 {[%clk 0:02:42.2]} 22. Rae1 {[%clk 0:02:06.3]}
22... Rge8 {[%clk 0:02:42.7]} 23. Nh4 {[%clk 0:02:06.6]} 23... Kh8 {[%clk
0:02:21.6]} 24. Qc2 {[%clk 0:01:48.3]} 24... c4 {[%clk 0:02:14.1]} 25. Bxf5
{[%clk 0:00:48.5]} 25... Bxf5 {[%clk 0:02:13.4]} 26. Qxf5 {[%clk 0:00:49]} 26...
Qxf5 {[%clk 0:02:11.4]} 27. Rxe7 {[%clk 0:00:47.1]} 27... Rxe7 {[%clk
0:02:01.8]} 28. Rxe7 {[%clk 0:00:43.5]} 28... Qb1+ {[%clk 0:02:02.4]} 29. Kg2
{[%clk 0:00:43.3]} 29... d4 {[%clk 0:02:01.7]} 30. cxd4 {[%clk 0:00:41.6]} 30...
Nd5 {[%clk 0:02:01]} 31. Rxf7 {[%clk 0:00:42]} 31... Qe4+ {[%clk 0:01:59.8]} 32.
Kh3 {[%clk 0:00:39.2]} 0-1

[Event "*** Titled Tuesday Blitz"]
[Site "Chess.com"]
[Date "2021.03.30"]
[Round "1"]
[White "comsac"]
[Black "KaterynaLagno"]
[Result "0-1"]
[WhiteElo "2375"]
[BlackElo "2691"]
[TimeControl "180+1"]
[EndTime "10:04:50 PDT"]
[Termination "KaterynaLagno won by resignation"]

1. e4 {[%clk 0:03:00.9]} 1... e5 {[%clk 0:02:58.8]} 2. Nf3 {[%clk 0:03:00.2]}
2... Nc6 {[%clk 0:02:59]} 3. Bc4 {[%clk 0:03:00.6]} 3... Bc5 {[%clk 0:02:58.4]}
4. c3 {[%clk 0:03:01.2]} 4... Nf6 {[%clk 0:02:58.3]} 5. d4 {[%clk 0:03:01.7]}
5... exd4 {[%clk 0:02:58.4]} 6. cxd4 {[%clk 0:03:02.6]} 6... Bb4+ {[%clk
0:02:57.7]} 7. Bd2 {[%clk 0:03:03.1]} 7... Bxd2+ {[%clk 0:02:57.9]} 8. Nbxd2
{[%clk 0:03:04]} 8... d5 {[%clk 0:02:58.4]} 9. exd5 {[%clk 0:03:04.6]} 9... Nxd5
{[%clk 0:02:59.2]} 10. Qb3 {[%clk 0:03:05.1]} 10... Na5 {[%clk 0:02:59]} 11.
Qa4+ {[%clk 0:03:05.3]} 11... Nc6 {[%clk 0:02:59.3]} 12. Qb3 {[%clk 0:03:05.9]}
12... Nce7 {[%clk 0:02:59.6]} 13. O-O {[%clk 0:03:06.1]} 13... O-O {[%clk
0:02:59.7]} 14. Rfe1 {[%clk 0:03:06.6]} 14... c6 {[%clk 0:02:59]} 15. a4 {[%clk
0:03:06.8]} 15... a5 {[%clk 0:02:54.7]} 16. Ne4 {[%clk 0:02:51.8]} 16... Qb6
{[%clk 0:02:48.2]} 17. Nc5 {[%clk 0:02:34.5]} 17... Qxb3 {[%clk 0:02:46.9]} 18.
Bxb3 {[%clk 0:02:33.9]} 18... b6 {[%clk 0:02:45.5]} 19. Ne4 {[%clk 0:02:32.3]}
19... Bd7 {[%clk 0:02:25.8]} 20. Ne5 {[%clk 0:02:29.2]} 20... Rfd8 {[%clk
0:02:23.4]} 21. Rac1 {[%clk 0:02:25]} 21... Be8 {[%clk 0:02:23.2]} 22. Nc3
{[%clk 0:01:51.1]} 22... Nb4 {[%clk 0:02:18.9]} 23. Rcd1 {[%clk 0:01:51]} 23...
Kf8 {[%clk 0:02:17]} 24. Re3 {[%clk 0:01:46.2]} 24... Nf5 {[%clk 0:02:08.7]} 25.
Re4 {[%clk 0:01:41.4]} 25... f6 {[%clk 0:02:05.6]} 26. Nf3 {[%clk 0:01:38.4]}
26... Bg6 {[%clk 0:01:59.7]} 27. Nh4 {[%clk 0:01:11.2]} 27... Nxh4 {[%clk
0:01:50.9]} 28. Rxh4 {[%clk 0:01:12.1]} 28... Rd7 {[%clk 0:01:46.3]} 29. f3
{[%clk 0:01:01.3]} 29... Rad8 {[%clk 0:01:45.9]} 30. Kf2 {[%clk 0:01:01]} 30...
h6 {[%clk 0:01:37.9]} 31. Rf4 {[%clk 0:00:57.4]} 31... Nd3+ {[%clk 0:01:36.1]}
0-1

[Event "*** Titled Tuesday Blitz"]
[Site "Chess.com"]
[Date "2021.03.30"]
[Round "1"]
[White "ChessFunMaker"]
[Black "Terao90"]
[Result "0-1"]
[WhiteElo "2235"]
[BlackElo "2548"]
[TimeControl "180+1"]
[EndTime "10:04:52 PDT"]
[Termination "Terao90 won by resignation"]

1. c4 {[%clk 0:03:00.1]} 1... Nf6 {[%clk 0:02:59.8]} 2. g3 {[%clk 0:02:59.2]}
2... g6 {[%clk 0:02:59.4]} 3. Bg2 {[%clk 0:02:59]} 3... Bg7 {[%clk 0:02:57.5]}
4. Nc3 {[%clk 0:02:59.6]} 4... O-O {[%clk 0:02:57.4]} 5. e4 {[%clk 0:02:58.7]}
5... c5 {[%clk 0:02:56.8]} 6. Nge2 {[%clk 0:02:58]} 6... Nc6 {[%clk 0:02:57.1]}
7. O-O {[%clk 0:02:57.8]} 7... Ne8 {[%clk 0:02:57.1]} 8. d3 {[%clk 0:02:53.2]}
8... Nc7 {[%clk 0:02:56.5]} 9. f4 {[%clk 0:02:33.1]} 9... Ne6 {[%clk 0:02:56.1]}
10. f5 {[%clk 0:02:32.2]} 10... Ned4 {[%clk 0:02:56.1]} 11. Be3 {[%clk
0:02:29.3]} 11... d6 {[%clk 0:02:55.8]} 12. Qd2 {[%clk 0:02:17.3]} 12... Re8
{[%clk 0:02:52.3]} 13. Bh6 {[%clk 0:02:06.7]} 13... Bh8 {[%clk 0:02:52.2]} 14.
Nf4 {[%clk 0:01:57.4]} 14... Rb8 {[%clk 0:02:45.9]} 15. fxg6 {[%clk 0:01:40.7]}
15... hxg6 {[%clk 0:02:45.8]} 16. Nxg6 {[%clk 0:01:35.3]} 16... fxg6 {[%clk
0:02:43.8]} 17. Qg5 {[%clk 0:01:30.3]} 17... Ne5 {[%clk 0:02:43.1]} 18. Nd5
{[%clk 0:00:55.1]} 18... Be6 {[%clk 0:02:40.7]} 19. Nxe7+ {[%clk 0:00:36.4]}
19... Qxe7 {[%clk 0:02:35.6]} 20. Rf8+ {[%clk 0:00:35.4]} 20... Qxf8 {[%clk
0:02:24.7]} 21. Bxf8 {[%clk 0:00:22.4]} 21... Nef3+ {[%clk 0:02:24.1]} 22. Bxf3
{[%clk 0:00:20.4]} 22... Nxf3+ {[%clk 0:02:25]} 23. Kg2 {[%clk 0:00:18.3]} 23...
Nxg5 {[%clk 0:02:24.8]} 24. Bxd6 {[%clk 0:00:19.2]} 24... Rbc8 {[%clk
0:02:23.4]} 25. h4 {[%clk 0:00:17.8]} 25... Nf7 {[%clk 0:02:22]} 26. Bf4 {[%clk
0:00:17.8]} 26... Ne5 {[%clk 0:02:21.5]} 27. Rd1 {[%clk 0:00:16.5]} 27... Nc6
{[%clk 0:02:21.6]} 28. Bd6 {[%clk 0:00:15.3]} 28... Nd4 {[%clk 0:02:20.9]} 29.
b3 {[%clk 0:00:14.8]} 29... b6 {[%clk 0:02:20.6]} 30. Rf1 {[%clk 0:00:14.8]}
30... Bg7 {[%clk 0:02:16.5]} 0-1

[Event "*** Titled Tuesday Blitz"]
[Site "Chess.com"]
[Date "2021.03.30"]
[Round "1"]
[White "UCantHandleDenker"]
[Black "kubal123"]
[Result "1-0"]
[WhiteElo "2545"]
[BlackElo "2232"]
[TimeControl "180+1"]
[EndTime "10:04:52 PDT"]
[Termination "UCantHandleDenker won by resignation"]

1. Nf3 {[%clk 0:03:00.6]} 1... Nc6 {[%clk 0:02:53.3]} 2. g3 {[%clk 0:03:00.8]}
2... b6 {[%clk 0:02:49.8]} 3. d3 {[%clk 0:03:01.7]} 3... d5 {[%clk 0:02:45.9]}
4. Bg2 {[%clk 0:03:01.9]} 4... e6 {[%clk 0:02:43.4]} 5. O-O {[%clk 0:03:02]}
5... Nf6 {[%clk 0:02:36.5]} 6. c4 {[%clk 0:03:01.7]} 6... d4 {[%clk 0:02:32.5]}
7. Ne5 {[%clk 0:02:49.9]} 7... Bb7 {[%clk 0:02:18]} 8. Nxc6 {[%clk 0:02:39.5]}
8... Bxc6 {[%clk 0:02:10.4]} 9. Bxc6+ {[%clk 0:02:38]} 9... Ke7 {[%clk
0:02:01.2]} 10. b3 {[%clk 0:02:28.7]} 10... Rc8 {[%clk 0:01:57.7]} 11. Ba3+
{[%clk 0:02:27.3]} 11... Qd6 {[%clk 0:01:23.6]} 12. Bxd6+ {[%clk 0:02:25.9]}
12... Kxd6 {[%clk 0:01:22.2]} 13. Bg2 {[%clk 0:02:24.9]} 13... Ke7 {[%clk
0:01:13]} 14. Nd2 {[%clk 0:02:25]} 14... Rd8 {[%clk 0:01:11.2]} 15. b4 {[%clk
0:02:23.8]} 15... c6 {[%clk 0:01:09.9]} 16. Qa4 {[%clk 0:02:23.3]} 16... Kd7
{[%clk 0:00:54.8]} 17. Qxa7+ {[%clk 0:02:20.4]} 17... Ke8 {[%clk 0:00:49.4]} 18.
Bxc6+ {[%clk 0:02:18.6]} 18... Rd7 {[%clk 0:00:47.2]} 19. c5 {[%clk 0:02:08]}
19... Be7 {[%clk 0:00:20.4]} 20. cxb6 {[%clk 0:01:59.8]} 20... Bxb4 {[%clk
0:00:17.2]} 21. Bxd7+ {[%clk 0:01:56.8]} 21... Nxd7 {[%clk 0:00:12.1]} 22. Qa8+
{[%clk 0:01:55.7]} 1-0

[Event "*** Titled Tuesday Blitz"]
[Site "Chess.com"]
[Date "2021.03.30"]
[Round "1"]
[White "Sueetin"]
[Black "slavenok"]
[Result "1-0"]
[WhiteElo "2423"]
[BlackElo "2737"]
[TimeControl "180+1"]
[EndTime "10:04:54 PDT"]
[Termination "Sueetin won by resignation"]

1. d4 {[%clk 0:03:00.9]} 1... d5 {[%clk 0:02:59.3]} 2. c4 {[%clk 0:03:01]} 2...
e6 {[%clk 0:02:59.6]} 3. Nc3 {[%clk 0:03:00.6]} 3... Nf6 {[%clk 0:03:00]} 4.
cxd5 {[%clk 0:03:01]} 4... Nxd5 {[%clk 0:03:00.9]} 5. e4 {[%clk 0:03:00.6]} 5...
Nxc3 {[%clk 0:03:01.1]} 6. bxc3 {[%clk 0:03:01.5]} 6... c5 {[%clk 0:03:01.7]} 7.
Nf3 {[%clk 0:03:01.8]} 7... cxd4 {[%clk 0:03:02.1]} 8. cxd4 {[%clk 0:03:02.7]}
8... Bb4+ {[%clk 0:03:02.6]} 9. Bd2 {[%clk 0:03:03.3]} 9... Bxd2+ {[%clk
0:03:03.5]} 10. Qxd2 {[%clk 0:03:03.9]} 10... O-O {[%clk 0:03:03.9]} 11. Bc4
{[%clk 0:03:04]} 11... b6 {[%clk 0:03:04.3]} 12. O-O {[%clk 0:03:03.8]} 12...
Ba6 {[%clk 0:03:04.7]} 13. Bxa6 {[%clk 0:03:01]} 13... Nxa6 {[%clk 0:03:05.6]}
14. a4 {[%clk 0:02:57.3]} 14... Qe7 {[%clk 0:03:00.9]} 15. Ne5 {[%clk
0:02:48.9]} 15... Qb7 {[%clk 0:02:50.6]} 16. f3 {[%clk 0:02:43.8]} 16... Rfd8
{[%clk 0:02:49.1]} 17. Rfd1 {[%clk 0:02:34.8]} 17... f6 {[%clk 0:02:45.9]} 18.
Ng4 {[%clk 0:02:23.4]} 18... Rac8 {[%clk 0:02:42.7]} 19. Qa2 {[%clk 0:02:17.3]}
19... Qe7 {[%clk 0:02:30.7]} 20. Ne3 {[%clk 0:02:01]} 20... Nb4 {[%clk
0:02:28.8]} 21. Qb3 {[%clk 0:01:59.5]} 21... a5 {[%clk 0:02:28.1]} 22. Nc4
{[%clk 0:01:49.7]} 22... Qa7 {[%clk 0:02:18.6]} 23. Na3 {[%clk 0:01:47.3]} 23...
Qc7 {[%clk 0:02:15.6]} 24. Nb5 {[%clk 0:01:46.7]} 24... Qc2 {[%clk 0:02:12.8]}
25. Qxe6+ {[%clk 0:01:46.5]} 25... Kh8 {[%clk 0:02:10.6]} 26. Rac1 {[%clk
0:01:43.8]} 26... Qxc1 {[%clk 0:02:01.2]} 27. Rxc1 {[%clk 0:01:44.7]} 27...
Rxc1+ {[%clk 0:02:01.4]} 28. Kf2 {[%clk 0:01:45.1]} 28... Nd3+ {[%clk
0:01:59.2]} 29. Kg3 {[%clk 0:01:45.1]} 29... Ne1 {[%clk 0:01:52.3]} 30. Nd6
{[%clk 0:01:40.8]} 30... Rc7 {[%clk 0:01:35.1]} 31. Nf7+ {[%clk 0:01:36.6]}
31... Rxf7 {[%clk 0:01:34.4]} 32. Qxf7 {[%clk 0:01:37.5]} 32... h6 {[%clk
0:01:34.5]} 33. d5 {[%clk 0:01:23.2]} 33... Nd3 {[%clk 0:01:29.7]} 34. Qe7
{[%clk 0:01:15.4]} 34... Rc8 {[%clk 0:01:24.3]} 35. d6 {[%clk 0:01:12.7]} 1-0

[Event "*** Titled Tuesday Blitz"]
[Site "Chess.com"]
[Date "2021.03.30"]
[Round "1"]
[White "Mazanchenko_Dmitry"]
[Black "dcremisi"]
[Result "0-1"]
[WhiteElo "2205"]
[BlackElo "2531"]
[TimeControl "180+1"]
[EndTime "10:05:00 PDT"]
[Termination "dcremisi won by resignation"]

1. e4 {[%clk 0:02:59.9]} 1... e6 {[%clk 0:03:00.2]} 2. d4 {[%clk 0:02:59.2]}
2... d5 {[%clk 0:02:59.9]} 3. Nc3 {[%clk 0:03:00.1]} 3... Nf6 {[%clk 0:02:59.8]}
4. Bg5 {[%clk 0:02:59.1]} 4... Be7 {[%clk 0:02:59.7]} 5. e5 {[%clk 0:02:58]}
5... Nfd7 {[%clk 0:03:00.1]} 6. h4 {[%clk 0:02:57.5]} 6... h6 {[%clk 0:02:57.6]}
7. Bxe7 {[%clk 0:02:57]} 7... Qxe7 {[%clk 0:02:58.5]} 8. Qg4 {[%clk 0:02:55]}
8... O-O {[%clk 0:02:55.5]} 9. Nce2 {[%clk 0:02:49.9]} 9... c5 {[%clk
0:02:54.6]} 10. c3 {[%clk 0:02:49.8]} 10... cxd4 {[%clk 0:02:54.2]} 11. Nf3
{[%clk 0:02:39.3]} 11... dxc3 {[%clk 0:02:40.4]} 12. Nxc3 {[%clk 0:02:39.1]}
12... Nc6 {[%clk 0:02:39.8]} 13. Qg3 {[%clk 0:02:34.1]} 13... d4 {[%clk
0:02:35.1]} 14. Ne4 {[%clk 0:02:27.4]} 14... Qb4+ {[%clk 0:02:33.9]} 15. Nfd2
{[%clk 0:02:27.8]} 15... Ndxe5 {[%clk 0:02:21.7]} 16. f4 {[%clk 0:02:23.5]}
16... Ng6 {[%clk 0:02:17.2]} 17. h5 {[%clk 0:02:13.8]} 17... Nge7 {[%clk
0:02:17.2]} 18. Bd3 {[%clk 0:02:05.1]} 18... Nf5 {[%clk 0:02:16]} 19. Nf6+
{[%clk 0:01:49.9]} 19... Kh8 {[%clk 0:02:14.9]} 20. Bxf5 {[%clk 0:01:50.8]}
20... exf5 {[%clk 0:02:01.1]} 21. Nd5 {[%clk 0:01:41.2]} 21... Qc5 {[%clk
0:01:59.7]} 22. Nc7 {[%clk 0:01:32.1]} 22... Qe7+ {[%clk 0:01:54.4]} 23. Kf2
{[%clk 0:01:23.4]} 23... Qxc7 {[%clk 0:01:53]} 24. Nf3 {[%clk 0:01:24.3]} 24...
Be6 {[%clk 0:01:45.6]} 25. Rac1 {[%clk 0:01:24.1]} 25... d3 {[%clk 0:01:39.7]}
26. Rhd1 {[%clk 0:01:05.4]} 26... Qb6+ {[%clk 0:01:39.1]} 27. Kf1 {[%clk
0:01:05.7]} 27... Rad8 {[%clk 0:01:37.6]} 28. b3 {[%clk 0:01:04.4]} 28... Qe3
{[%clk 0:01:27.4]} 29. Re1 {[%clk 0:01:00.2]} 29... d2 {[%clk 0:01:26.5]} 30.
Nxd2 {[%clk 0:00:53.4]} 30... Qxg3 {[%clk 0:01:25.7]} 0-1

[Event "*** Titled Tuesday Blitz"]
[Site "Chess.com"]
[Date "2021.03.30"]
[Round "1"]
[White "Firouzja2003"]
[Black "Cptn2"]
[Result "1-0"]
[WhiteElo "3093"]
[BlackElo "2474"]
[TimeControl "180+1"]
[EndTime "10:05:02 PDT"]
[Termination "Firouzja2003 won by resignation"]

1. d4 {[%clk 0:02:52.8]} 1... Nf6 {[%clk 0:02:56.6]} 2. Bg5 {[%clk 0:02:43.8]}
2... c5 {[%clk 0:02:46]} 3. d5 {[%clk 0:02:41.5]} 3... e6 {[%clk 0:02:43.2]} 4.
Nc3 {[%clk 0:02:39.6]} 4... h6 {[%clk 0:02:27.2]} 5. Bh4 {[%clk 0:02:38.2]} 5...
d6 {[%clk 0:02:11.6]} 6. e4 {[%clk 0:02:37.2]} 6... Be7 {[%clk 0:02:09.8]} 7.
Bb5+ {[%clk 0:02:35.3]} 7... Nbd7 {[%clk 0:02:05.6]} 8. dxe6 {[%clk 0:02:34.5]}
8... fxe6 {[%clk 0:02:06.5]} 9. Nf3 {[%clk 0:02:34]} 9... O-O {[%clk 0:02:03.3]}
10. Qe2 {[%clk 0:02:28.9]} 10... Ng4 {[%clk 0:01:47.3]} 11. Bg3 {[%clk
0:02:25.2]} 11... a6 {[%clk 0:01:32.6]} 12. Bc4 {[%clk 0:02:20.3]} 12... Nb6
{[%clk 0:01:22.4]} 13. Bd3 {[%clk 0:02:19.9]} 13... d5 {[%clk 0:01:12.5]} 14. e5
{[%clk 0:02:14.3]} 14... h5 {[%clk 0:00:54.2]} 15. O-O-O {[%clk 0:02:12.3]}
15... Nh6 {[%clk 0:00:32.6]} 16. h4 {[%clk 0:02:04.8]} 16... Nf5 {[%clk
0:00:32]} 17. Ng5 {[%clk 0:02:05.1]} 17... Bxg5+ {[%clk 0:00:30.1]} 18. hxg5
{[%clk 0:02:06]} 18... Qxg5+ {[%clk 0:00:30.6]} 19. Kb1 {[%clk 0:02:06.7]} 19...
c4 {[%clk 0:00:28.7]} 20. Bxf5 {[%clk 0:02:02.9]} 20... Rxf5 {[%clk 0:00:27.7]}
21. Rd4 {[%clk 0:01:58.9]} 21... Bd7 {[%clk 0:00:25]} 22. Bh4 {[%clk 0:01:59.1]}
22... Qg6 {[%clk 0:00:24.9]} 23. g4 {[%clk 0:01:59.7]} 23... hxg4 {[%clk
0:00:23.6]} 24. Rxg4 {[%clk 0:02:00.6]} 24... Qh7 {[%clk 0:00:23.4]} 25. Rhg1
{[%clk 0:02:00.3]} 25... Rf7 {[%clk 0:00:22.5]} 26. Bf6 {[%clk 0:02:00.3]} 26...
Raf8 {[%clk 0:00:18.4]} 27. Qe3 {[%clk 0:01:57.7]} 27... Rxf6 {[%clk 0:00:18.4]}
28. exf6 {[%clk 0:01:57.8]} 1-0